Workbook

Sheet 1000m ja Korkeus
B1: Miniottelu 1000m ja Korkeus 17.7
B2: HUOM ! syötä aika sekunteina, korkeus senteissä
C4: Korkeus | E4: 1000m
B5: Kilpailija | C5: Tulos | D5: Pisteet | E5: Tulos | F5: Pisteet | G5: YHTEENSÄ
A6: 1 | B6: Vanessa Store | C6: 111 | D6: =ROUNDDOWN(IF(ISBLANK(C6),0,INT((1010/((194.45/C6)^2.9412))-10)),0) -> 184 | E6: 238.74 | F6: =ROUNDDOWN(IF(ISBLANK(E6),0,INT((1010/((E6/156.99)^4))-10)),0) -> 178 | G6: =D6+F6 -> 362
A7: 2 | B7: Saara Rahlan (UP) | C7: 114 | D7: =ROUNDDOWN(IF(ISBLANK(C7),0,INT((1010/((194.45/C7)^2.9412))-10)),0) -> 200 | E7: 254.27 | F7: 136 | G7: =D7+F7 -> 336
A8: 3 | D8: 0 | F8: 0 | G8: 0
A9: 4 | D9: 0 | F9: 0 | G9: 0
A10: 5 | D10: 0 | F10: 0 | G10: 0
A11: 6 | D11: 0 | F11: 0 | G11: 0
A12: 7 | D12: 0 | F12: 0 | G12: 0
A13: 8 | D13: 0 | F13: 0 | G13: 0
A14: 9 | D14: 0 | F14: 0 | G14: 0
A15: 10 | D15: 0 | F15: 0 | G15: 0
A16: 11 | D16: 0 | F16: 0 | G16: 0
A17: 12 | D17: 0 | F17: 0 | G17: 0
A18: 13 | D18: 0 | F18: 0 | G18: 0
A19: 14 | D19: 0 | F19: 0 | G19: 0
A20: 15 | D20: 0 | F20: 0 | G20: 0
A21: 16 | D21: 0 | F21: 0 | G21: 0
A22: 17 | D22: 0 | F22: 0 | G22: 0
A23: 18 | D23: 0 | F23: 0 | G23: 0
A24: 19 | D24: 0 | F24: 0 | G24: 0
A25: 20 | D25: 0 | F25: 0 | G25: 0
A26: 21 | D26: 0 | F26: 0 | G26: 0
A27: 22 | D27: 0 | F27: 0 | G27: 0
A28: 23 | D28: 0 | F28: 0 | G28: 0
A29: 24 | D29: 0 | F29: 0 | G29: 0
A30: 25 | D30: 0 | F30: 0 | G30: 0
A31: 26 | D31: 0 | F31: 0 | G31: 0
A32: 27 | D32: 0 | F32: 0 | G32: 0
A33: 28 | D33: 0 | F33: 0 | G33: 0
A34: 29 | D34: 0 | F34: 0 | G34: 0
A35: 30 | D35: 0 | F35: 0 | G35: 0
A36: 31 | D36: 0 | F36: 0 | G36: 0
A37: 32 | D37: 0 | F37: 0 | G37: 0
A38: 33 | D38: 0 | F38: 0 | G38: 0
A39: 34 | D39: 0 | F39: 0 | G39: 0
A40: 35 | D40: 0 | F40: 0 | G40: 0
A41: 36 | D41: 0 | F41: 0 | G41: 0

Sheet Pituus ja Keihäs
B1: Miniottelu Pituus / Keihäs 17.7
B2: HUOM ! Syötä tulos metreissä (xx,xx)
C4: Pituus | E4: Keihäs
B5: Kilpailija | C5: tulos | D5: pist. | E5: tulos | F5: pist. | G5: YHTEENSÄ
A6: 1 | B6: Saara Rahlan (UP) | C6: 377 | D6: =ROUNDDOWN(IF(ISBLANK(C6),0,INT((1010/((676.5/C6)^2.439))-10)),0) -> 232 | E6: 11.27 | F6: =ROUNDDOWN(IF(ISBLANK(E6),0,INT((1010/((71.02/E6)^1.1765))-10)),0) -> 105 | G6: =D6+F6 -> 337
A7: 2 | B7: Helmi Jauhiainen | C7: 289 | D7: 116 | E7: 14.9 | F7: 150 | G7: 266
A8: 3 | B8: Vanessa Store | C8: 362 | D8: 209 | E8: 6.84 | F8: 54 | G8: 263
A9: 4 | B9: Essi Sorvisto | C9: 290 | D9: 117 | E9: 12.19 | F9: 117 | G9: 234
A10: 5 | B10: Naomi Edereho (UP) | C10: 300 | D10: 128 | E10: 10.99 | F10: 102 | G10: 230
A11: 6 | B11: Vanessa Pöyhönen | C11: 308 | D11: 138 | E11: 8.13 | F11: 68 | G11: 206
A12: 7 | B12: Siiri Löf | C12: 269 | D12: 96 | E12: 6.2 | F12: 47 | G12: 143
A13: 8 | B13: Salli Hietalahti | C13: 255 | D13: 83 | E13: 7.25 | F13: 58 | G13: 141
A14: 9 | B14: Rebecca Nyberg (UP) | C14: 243 | D14: 73 | E14: 7.91 | F14: 66 | G14: 139
A15: 10 | B15: Lotta Mäkelä | C15: 252 | D15: 80 | E15: 5.54 | F15: 40 | G15: 120
A16: 11 | B16: Veera Hautakoski | C16: 228 | D16: 61 | E16: 7.18 | F16: 58 | G16: 119
A17: 12 | B17: Sara Hautakoski | C17: 191 | D17: 36 | E17: 8.03 | F17: 67 | G17: 103
A18: 13 | D18: =ROUNDDOWN(IF(ISBLANK(C18),0,INT((1010/((676.5/C18)^2.439))-10)),0) -> 0 | F18: =ROUNDDOWN(IF(ISBLANK(E18),0,INT((1010/((71.02/E18)^1.1765))-10)),0) -> 0 | G18: =D18+F18 -> 0
A19: 14 | D19: 0 | F19: 0 | G19: 0
A20: 15 | D20: 0 | F20: 0 | G20: 0
A21: 16 | D21: 0 | F21: 0 | G21: 0
A22: 17 | D22: 0 | F22: 0 | G22: 0
A23: 18 | D23: 0 | F23: 0 | G23: 0
A24: 19 | D24: 0 | F24: 0 | G24: 0
A25: 20 | D25: 0 | F25: 0 | G25: 0
A26: 21 | D26: 0 | F26: 0 | G26: 0
A27: 22 | D27: 0 | F27: 0 | G27: 0
A28: 23 | D28: 0 | F28: 0 | G28: 0
A29: 24 | D29: 0 | F29: 0 | G29: 0
A30: 25 | D30: 0 | F30: 0 | G30: 0
A31: 26 | D31: 0 | F31: 0 | G31: 0
A32: 27 | D32: 0 | F32: 0 | G32: 0
A33: 28 | D33: 0 | F33: 0 | G33: 0
A34: 29 | D34: 0 | F34: 0 | G34: 0
A35: 30 | D35: 0 | F35: 0 | G35: 0
A36: 31 | D36: 0 | F36: 0 | G36: 0
A37: 32 | D37: 0 | F37: 0 | G37: 0
A38: 33 | D38: 0 | F38: 0 | G38: 0
A39: 34 | D39: 0 | F39: 0 | G39: 0
A40: 35 | D40: 0 | F40: 0 | G40: 0
A41: 36 | D41: 0 | F41: 0 | G41: 0

Sheet Kuula ja Keihäs
B1: Miniottelu Kuula / Keihäs 16.7
B2: HUOM ! Syötä tulos metreissä (xx,xx)
C4: Kuula | E4: Keihäs
B5: Kilpailija | C5: tulos | D5: pist. | E5: tulos | F5: pist. | G5: YHTEENSÄ
A6: 1 | B6: Helmi Jauhiainen | C6: 5.65 | D6: =ROUNDDOWN(IF(ISBLANK(C6),0,INT((1010/((18.28/C6)^1.2195))-10)),0) -> 231 | E6: 14.9 | F6: =ROUNDDOWN(IF(ISBLANK(E6),0,INT((1010/((71.02/E6)^1.1765))-10)),0) -> 150 | G6: =D6+F6 -> 381
A7: 2 | B7: Essi Sorvisto | C7: 4.71 | D7: 183 | E7: 12.19 | F7: 117 | G7: 300
A8: 3 | B8: Anni Syväkoski | C8: 4.69 | D8: 182 | E8: 8.97 | F8: 78 | G8: 260
A9: 4 | B9: Sara Hautakoski | C9: 4.09 | D9: 152 | E9: 8.03 | F9: 67 | G9: 219
A10: 5 | B10: Rebecca Nyberg (UP) | C10: 3.79 | D10: 138 | E10: 7.91 | F10: 66 | G10: 204
A11: 6 | B11: Veera Hautakoski | C11: 3.85 | D11: 141 | E11: 7.18 | F11: 58 | G11: 199
A12: 7 | B12: Iida Haasala | C12: 3.57 | D12: 127 | E12: 5.88 | F12: 43 | G12: 170
A13: 8 | D13: =ROUNDDOWN(IF(ISBLANK(C13),0,INT((1010/((18.28/C13)^1.2195))-10)),0) -> 0 | F13: =ROUNDDOWN(IF(ISBLANK(E13),0,INT((1010/((71.02/E13)^1.1765))-10)),0) -> 0 | G13: =D13+F13 -> 0
A14: 9 | D14: 0 | F14: 0 | G14: 0
A15: 10 | D15: 0 | F15: 0 | G15: 0
A16: 11 | D16: 0 | F16: 0 | G16: 0
A17: 12 | D17: 0 | F17: 0 | G17: 0
A18: 13 | D18: 0 | F18: 0 | G18: 0
A19: 14 | D19: 0 | F19: 0 | G19: 0
A20: 15 | D20: 0 | F20: 0 | G20: 0
A21: 16 | D21: 0 | F21: 0 | G21: 0
A22: 17 | D22: 0 | F22: 0 | G22: 0
A23: 18 | D23: 0 | F23: 0 | G23: 0
A24: 19 | D24: 0 | F24: 0 | G24: 0
A25: 20 | D25: 0 | F25: 0 | G25: 0
A26: 21 | D26: 0 | F26: 0 | G26: 0
A27: 22 | D27: 0 | F27: 0 | G27: 0
A28: 23 | D28: 0 | F28: 0 | G28: 0
A29: 24 | D29: 0 | F29: 0 | G29: 0
A30: 25 | D30: 0 | F30: 0 | G30: 0
A31: 26 | D31: 0 | F31: 0 | G31: 0
A32: 27 | D32: 0 | F32: 0 | G32: 0
A33: 28 | D33: 0 | F33: 0 | G33: 0
A34: 29 | D34: 0 | F34: 0 | G34: 0
A35: 30 | D35: 0 | F35: 0 | G35: 0
A36: 31 | D36: 0 | F36: 0 | G36: 0
A37: 32 | D37: 0 | F37: 0 | G37: 0
A38: 33 | D38: 0 | F38: 0 | G38: 0
A39: 34 | D39: 0 | F39: 0 | G39: 0
A40: 35 | D40: 0 | F40: 0 | G40: 0
A41: 36 | D41: 0 | F41: 0 | G41: 0

Sheet 40m ja Korkeus
B1: Miniottelu 40m / Korkeus 17.7
B2: Juoksumatkoissa syötä aika sekunteina. Korkeus senteissä
C4: 40m | E4: Korkeus
B5: Kilpailija | C5: Tulos | D5: Pisteet | E5: Tulos | F5: Pisteet | G5: YHTEENSÄ
A6: 1 | B6: Saara Rahlan (UP) | C6: 6.84 | D6: =ROUNDDOWN(IF(ISBLANK(C6),0,INT((1010/((C6/5.36)^5.2632))-10)),0) -> 269 | E6: 114 | F6: =ROUNDDOWN(IF(ISBLANK(E6),0,INT((1010/((194.45/E6)^2.9412))-10)),0) -> 200 | G6: =D6+F6 -> 469
A7: 2 | B7: Anna Heikkilä | C7: 7.26 | D7: 194 | E7: 100 | F7: 132 | G7: 326
A8: 3 | B8: Livia Kähtävä | C8: 7.37 | D8: 178 | E8: 100 | F8: 132 | G8: 310
A9: 4 | B9: Jenniina Tuura | C9: 7.34 | D9: 183 | E9: 95 | F9: 112 | G9: 295
A10: 5 | B10: Klaara Kivistö | C10: 8.07 | D10: 107 | E10: 100 | F10: 132 | G10: 239
A11: 6 | B11: Iida Haasala | C11: 8.21 | D11: 97 | E11: 90 | F11: 94 | G11: 191
A12: 7 | B12: Eerika Rekilä | C12: 8.14 | D12: 102 | E12: 85 | F12: 78 | G12: 180
A13: 8 | D13: =ROUNDDOWN(IF(ISBLANK(C13),0,INT((1010/((C13/5.36)^5.2632))-10)),0) -> 0 | F13: =ROUNDDOWN(IF(ISBLANK(E13),0,INT((1010/((194.45/E13)^2.9412))-10)),0) -> 0 | G13: =D13+F13 -> 0
A14: 9 | D14: 0 | F14: 0 | G14: 0
A15: 10 | D15: 0 | F15: 0 | G15: 0
A16: 11 | D16: 0 | F16: 0 | G16: 0
A17: 12 | D17: 0 | F17: 0 | G17: 0
A18: 13 | D18: 0 | F18: 0 | G18: 0
A19: 14 | D19: 0 | F19: 0 | G19: 0
A20: 15 | D20: 0 | F20: 0 | G20: 0
A21: 16 | D21: 0 | F21: 0 | G21: 0
A22: 17 | D22: 0 | F22: 0 | G22: 0
A23: 18 | D23: 0 | F23: 0 | G23: 0
A24: 19 | D24: 0 | F24: 0 | G24: 0
A25: 20 | D25: 0 | F25: 0 | G25: 0
A26: 21 | D26: 0 | F26: 0 | G26: 0
A27: 22 | D27: 0 | F27: 0 | G27: 0
A28: 23 | D28: 0 | F28: 0 | G28: 0
A29: 24 | D29: 0 | F29: 0 | G29: 0
A30: 25 | D30: 0 | F30: 0 | G30: 0
A31: 26 | D31: 0 | F31: 0 | G31: 0
A32: 27 | D32: 0 | F32: 0 | G32: 0
A33: 28 | D33: 0 | F33: 0 | G33: 0
A34: 29 | D34: 0 | F34: 0 | G34: 0
A35: 30 | D35: 0 | F35: 0 | G35: 0
A36: 31 | D36: 0 | F36: 0 | G36: 0
A37: 32 | D37: 0 | F37: 0 | G37: 0
A38: 33 | D38: 0 | F38: 0 | G38: 0
A39: 34 | D39: 0 | F39: 0 | G39: 0
A40: 35 | D40: 0 | F40: 0 | G40: 0
A41: 36 | D41: 0 | F41: 0 | G41: 0

Sheet 40m ja 1000m
B1: Miniottelu 40m / 1000m 17.7
B2: HUOM ! syötä aika sekunteina
C4: 40m | E4: 1000m
B5: Kilpailija | C5: Tulos | D5: Pisteet | E5: Tulos | F5: Pisteet | G5: YHTEENSÄ
A6: 1 | B6: Vanessa Store | C6: 6.88 | D6: =ROUNDDOWN(IF(ISBLANK(C6),0,INT((1010/((C6/5.36)^5.2632))-10)),0) -> 261 | E6: 238.74 | F6: =ROUNDDOWN(IF(ISBLANK(E6),0,INT((1010/((E6/156.99)^4))-10)),0) -> 178 | G6: =D6+F6 -> 439
A7: 2 | B7: Saara Rahlan (UP) | C7: 6.84 | D7: 269 | E7: 254.27 | F7: 136 | G7: 405
A8: 3 | B8: Viivi-Leena Kari | C8: 7.17 | D8: 208 | E8: 258.09 | F8: 128 | G8: 336
A9: 4 | B9: Riialiina Kiljala | C9: 7.09 | D9: 221 | E9: 264.97 | F9: 114 | G9: 335
A10: 5 | B10: Salli Hietalahti | C10: 7.41 | D10: 173 | E10: 262.11 | F10: 119 | G10: 292
A11: 6 | B11: Aava Raudaskoski | C11: 7.27 | D11: 193 | E11: 274.61 | F11: 97 | G11: 290
A12: 7 | B12: Elmiina Katajalaakso | C12: 7.66 | D12: 144 | E12: 251.75 | F12: 142 | G12: 286
A13: 8 | B13: Iida Anttila | C13: 7.73 | D13: 137 | E13: 249.72 | F13: 147 | G13: 284
A14: 9 | B14: Minka Mäkitalo | C14: 7.48 | D14: 164 | E14: 265.68 | F14: 113 | G14: 277
A15: 10 | B15: Tessa Pajunpää | C15: 7.42 | D15: 172 | E15: 274.31 | F15: 98 | G15: 270
A16: 11 | B16: Vanessa Pöyhönen | C16: 7.89 | D16: 121 | E16: 267.48 | F16: 109 | G16: 230
A17: 12 | B17: Fiia Niemelä | C17: 7.88 | D17: 122 | E17: 269.73 | F17: 105 | G17: 227
A18: 13 | B18: Siiri Löf | C18: 7.81 | D18: 129 | E18: 283.41 | F18: 85 | G18: 214
A19: 14 | B19: Isabella Flocco (UP) | C19: 7.96 | D19: 116 | E19: 304.69 | F19: 61 | G19: 177
A20: 15 | B20: Cecilia Flocco (UP) | C20: 8.35 | D20: 87 | E20: 292.53 | F20: 73 | G20: 160
A21: DNF | B21: Lotta Mäkelä | C21: 7.99 | D21: 113 | F21: 0 | G21: 113
A22: DNF | B22: Iida Haasala | C22: 8.21 | D22: 97 | F22: 0 | G22: 97
A23: 18 | D23: =ROUNDDOWN(IF(ISBLANK(C23),0,INT((1010/((C23/5.36)^5.2632))-10)),0) -> 0 | F23: =ROUNDDOWN(IF(ISBLANK(E23),0,INT((1010/((E23/156.99)^4))-10)),0) -> 0 | G23: =D23+F23 -> 0
A24: 19 | D24: 0 | F24: 0 | G24: 0
A25: 20 | D25: 0 | F25: 0 | G25: 0
A26: 21 | D26: 0 | F26: 0 | G26: 0
A27: 22 | D27: 0 | F27: 0 | G27: 0
A28: 23 | D28: 0 | F28: 0 | G28: 0
A29: 24 | D29: 0 | F29: 0 | G29: 0
A30: 25 | D30: 0 | F30: 0 | G30: 0
A31: 26 | D31: 0 | F31: 0 | G31: 0
A32: 27 | D32: 0 | F32: 0 | G32: 0
A33: 28 | D33: 0 | F33: 0 | G33: 0
A34: 29 | D34: 0 | F34: 0 | G34: 0
A35: 30 | D35: 0 | F35: 0 | G35: 0
A36: 31 | D36: 0 | F36: 0 | G36: 0
A37: 32 | D37: 0 | F37: 0 | G37: 0
A38: 33 | D38: 0 | F38: 0 | G38: 0
A39: 34 | D39: 0 | F39: 0 | G39: 0
A40: 35 | D40: 0 | F40: 0 | G40: 0
A41: 36 | D41: 0 | F41: 0 | G41: 0
A42: 37 | D42: 0 | F42: 0 | G42: 0

Sheet Kuula ja Pituus
B1: Miniottelu Kuula / Pituus 16.7
B2: HUOM! Syötä kuula metreissä (xx,xx). Pituus sentteinä (xxx)
C4: Kuula | E4: Pituus
B5: Kilpailija | C5: tulos | D5: pist. | E5: tulos | F5: pist. | G5: Yhteensä
A6: 1 | B6: Vanessa Store | C6: 5.32 | D6: =ROUNDDOWN(IF(ISBLANK(C6),0,INT((1010/((18.28/C6)^1.2195))-10)),0) -> 214 | E6: 362 | F6: =ROUNDDOWN(IF(ISBLANK(E6),0,INT((1010/((676.5/E6)^2.439))-10)),0) -> 209 | G6: =D6+F6 -> 423
A7: 2 | B7: Livia Kähtävä | C7: 5.99 | D7: 249 | E7: 332 | F7: 167 | G7: 416
A8: 3 | B8: Anna Heikkilä | C8: 5.67 | D8: 232 | E8: 339 | F8: 177 | G8: 409
A9: 4 | B9: Oona Herlevi | C9: 4.56 | D9: 175 | E9: 306 | F9: 135 | G9: 310
A10: 5 | B10: Minka Mäkitalo | C10: 4.09 | D10: 152 | E10: 323 | F10: 156 | G10: 308
A11: 6 | B11: Aava Raudaskoski | C11: 3.92 | D11: 144 | E11: 308 | F11: 138 | G11: 282
A12: 7 | B12: Riialiina Kiljala | C12: 4.29 | D12: 162 | E12: 288 | F12: 115 | G12: 277
A13: 8 | B13: Iina Herlevi | C13: 3.95 | D13: 145 | E13: 291 | F13: 119 | G13: 264
A14: 9 | B14: Elmiina Katajalaakso | C14: 4.4 | D14: 167 | E14: 265 | F14: 92 | G14: 259
A15: 10 | B15: Klaara Kivistö | C15: 3.76 | D15: 136 | E15: 279 | F15: 106 | G15: 242
A16: 11 | B16: Tessa Pajunpää | C16: 3.02 | D16: 102 | E16: 307 | F16: 137 | G16: 239
A17: 12 | B17: Eerika Rekilä | C17: 3.6 | D17: 129 | E17: 269 | F17: 96 | G17: 225
A18: 13 | B18: Iida Haasala | C18: 3.57 | D18: 127 | E18: 262 | F18: 89 | G18: 216
A19: 14 | B19: Malla Hämäläinen | C19: 3.17 | D19: 109 | E19: 249 | F19: 78 | G19: 187
A20: 15 | B20: Nella Hämäläinen | C20: 2.82 | D20: 93 | E20: 219 | F20: 54 | G20: 147
A21: 17 | D21: =ROUNDDOWN(IF(ISBLANK(C21),0,INT((1010/((18.28/C21)^1.2195))-10)),0) -> 0 | F21: =ROUNDDOWN(IF(ISBLANK(E21),0,INT((1010/((676.5/E21)^2.439))-10)),0) -> 0 | G21: =D21+F21 -> 0
A22: 18 | D22: 0 | F22: 0 | G22: 0
A23: 19 | D23: 0 | F23: 0 | G23: 0
A24: 20 | D24: 0 | F24: 0 | G24: 0
A25: 21 | D25: 0 | F25: 0 | G25: 0
A26: 22 | D26: 0 | F26: 0 | G26: 0
A27: 23 | D27: 0 | F27: 0 | G27: 0
A28: 24 | D28: 0 | F28: 0 | G28: 0
A29: 25 | D29: 0 | F29: 0 | G29: 0
A30: 26 | D30: 0 | F30: 0 | G30: 0
A31: 27 | D31: 0 | F31: 0 | G31: 0
A32: 28 | D32: 0 | F32: 0 | G32: 0
A33: 29 | D33: 0 | F33: 0 | G33: 0
A34: 30 | D34: 0 | F34: 0 | G34: 0
A35: 31 | D35: 0 | F35: 0 | G35: 0
A36: 32 | D36: 0 | F36: 0 | G36: 0
A37: 33 | D37: 0 | F37: 0 | G37: 0
A38: 34 | D38: 0 | F38: 0 | G38: 0
A39: 35 | D39: 0 | F39: 0 | G39: 0
A40: 36 | D40: 0 | F40: 0 | G40: 0
